[Event "Titled Tuesday Blitz August 02 Early 2022"]
[White "Itgelt, Khuyagtsogt"]
[Black "Swiercz, Dariusz"]
[WhiteFideId "4902912"]
[BlackFideId "1126881"]
[WhiteElo "2012"]
[BlackElo "2627"]
[Result "0-1"]
[Round "07"]
[TimeControl "180+1"]
[Date "2022.08.02"]
[WhiteClock "0:00:29"]
[BlackClock "0:00:36"]

1. d4 {[%clk 0:03:00]}  d5 {[%clk 0:02:58]} 2. c4 {[%clk 0:03:01]}  Nc6 {[%clk 0:02:58]} 3. e3 {[%clk 0:02:57]}  e5 {[%clk 0:02:53]} 4. cxd5 {[%clk 0:02:56]}  Qxd5 {[%clk 0:02:53]} 5. Nc3 {[%clk 0:02:54]}  Bb4 {[%clk 0:02:54]} 6. Bd2 {[%clk 0:02:55]}  Bxc3 {[%clk 0:02:53]} 7. bxc3 {[%clk 0:02:56]}  Nf6 {[%clk 0:02:53]} 8. c4 {[%clk 0:02:55]}  Qd6 {[%clk 0:02:51]} 9. d5 {[%clk 0:02:53]}  Nb8 {[%clk 0:02:49]} 10. Qa4+ {[%clk 0:02:21]}  Nbd7 {[%clk 0:02:43]} 11. Bb4 {[%clk 0:02:18]}  c5 {[%clk 0:02:43]} 12. dxc6 {[%clk 0:02:06]}  Qxc6 {[%clk 0:02:42]} 13. Qxc6 {[%clk 0:02:06]}  bxc6 {[%clk 0:02:42]} 14. Bd6 {[%clk 0:02:06]}  Ne4 {[%clk 0:02:39]} 15. Ba3 {[%clk 0:02:03]}  c5 {[%clk 0:02:35]} 16. Bd3 {[%clk 0:02:00]}  Bb7 {[%clk 0:02:31]} 17. Nf3 {[%clk 0:01:56]}  Bc6 {[%clk 0:02:15]} 18. O-O-O {[%clk 0:01:49]}  Nxf2 {[%clk 0:02:11]} 19. Bf5 {[%clk 0:01:40]}  Nxh1 {[%clk 0:02:08]} 20. Rxh1 {[%clk 0:01:39]}  f6 {[%clk 0:02:02]} 21. Rd1 {[%clk 0:01:31]}  Rc8 {[%clk 0:01:30]} 22. Nd2 {[%clk 0:01:20]}  Rc7 {[%clk 0:01:12]} 23. Ne4 {[%clk 0:01:19]}  Bxe4 {[%clk 0:01:11]} 24. Bxe4 {[%clk 0:01:20]}  Ke7 {[%clk 0:01:11]} 25. Kc2 {[%clk 0:01:13]}  Nb6 {[%clk 0:01:08]} 26. Bd5 {[%clk 0:01:07]}  Rb8 {[%clk 0:00:53]} 27. e4 {[%clk 0:01:02]}  h6 {[%clk 0:00:51]} 28. g4 {[%clk 0:01:01]}  Nxd5 {[%clk 0:00:43]} 29. cxd5 {[%clk 0:00:46]}  Kd6 {[%clk 0:00:43]} 30. Rd3 {[%clk 0:00:35]}  Rcb7 {[%clk 0:00:40]} 31. Rc3 {[%clk 0:00:34]}  Rb5 {[%clk 0:00:40]} 32. h3 {[%clk 0:00:33]}  Ra5 {[%clk 0:00:39]} 33. Kc1 {[%clk 0:00:30]}  Rbb5 {[%clk 0:00:39]} 34. Kc2 {[%clk 0:00:31]}  Ra4 {[%clk 0:00:39]} 35. Kd3 {[%clk 0:00:29]}  Rba5 {[%clk 0:00:36]} 0-1


[Site "https://www.chess.com"]

[Event "Titled Tuesday Blitz August 02 Early 2022"]
[White "Jakubowski, Krzysztof"]
[Black "Wagner, Dennis"]
[WhiteFideId "1112848"]
[BlackFideId "24650684"]
[WhiteElo "2365"]
[BlackElo "2355"]
[Result "1-0"]
[Round "07"]
[TimeControl "180+1"]
[Date "2022.08.02"]
[WhiteClock "0:00:08"]
[BlackClock "0:00:11"]

1. e4 {[%clk 0:03:00]}  e5 {[%clk 0:03:00]} 2. Nf3 {[%clk 0:02:59]}  Nc6 {[%clk 0:03:00]} 3. Bc4 {[%clk 0:02:59]}  Nf6 {[%clk 0:02:59]} 4. d3 {[%clk 0:02:58]}  Bc5 {[%clk 0:03:00]} 5. O-O {[%clk 0:02:57]}  d6 {[%clk 0:03:00]} 6. c3 {[%clk 0:02:56]}  h6 {[%clk 0:02:58]} 7. a4 {[%clk 0:02:55]}  a5 {[%clk 0:02:57]} 8. h3 {[%clk 0:02:49]}  O-O {[%clk 0:02:57]} 9. Re1 {[%clk 0:02:48]}  Be6 {[%clk 0:02:43]} 10. Bxe6 {[%clk 0:02:43]}  fxe6 {[%clk 0:02:43]} 11. Qb3 {[%clk 0:02:42]}  Qd7 {[%clk 0:02:40]} 12. Be3 {[%clk 0:02:36]}  b6 {[%clk 0:02:39]} 13. Nbd2 {[%clk 0:02:33]}  Nh5 {[%clk 0:02:35]} 14. d4 {[%clk 0:02:27]}  exd4 {[%clk 0:02:32]} 15. cxd4 {[%clk 0:02:27]}  Bb4 {[%clk 0:02:33]} 16. d5 {[%clk 0:02:21]}  Nd8 {[%clk 0:02:18]} 17. e5 {[%clk 0:02:06]}  dxe5 {[%clk 0:02:10]} 18. dxe6 {[%clk 0:01:57]}  Qxe6 {[%clk 0:02:09]} 19. Rec1 {[%clk 0:01:51]}  Qxb3 {[%clk 0:02:02]} 20. Nxb3 {[%clk 0:01:51]}  Bd6 {[%clk 0:01:46]} 21. Nbd2 {[%clk 0:01:50]}  Nf4 {[%clk 0:01:39]} 22. Rc2 {[%clk 0:01:37]}  Nde6 {[%clk 0:01:32]} 23. Kf1 {[%clk 0:01:34]}  Rad8 {[%clk 0:01:21]} 24. Rc6 {[%clk 0:01:24]}  Nd3 {[%clk 0:01:05]} 25. Rb1 {[%clk 0:01:14]}  Nb4 {[%clk 0:01:02]} 26. Rc4 {[%clk 0:01:13]}  Bc5 {[%clk 0:00:59]} 27. Ne4 {[%clk 0:01:06]}  Bxe3 {[%clk 0:00:58]} 28. fxe3 {[%clk 0:01:07]}  c5 {[%clk 0:00:35]} 29. Ke2 {[%clk 0:01:05]}  Nc6 {[%clk 0:00:35]} 30. Rcc1 {[%clk 0:00:57]}  Rd7 {[%clk 0:00:34]} 31. Rd1 {[%clk 0:00:55]}  Rfd8 {[%clk 0:00:35]} 32. Rxd7 {[%clk 0:00:55]}  Rxd7 {[%clk 0:00:35]} 33. h4 {[%clk 0:00:54]}  Nc7 {[%clk 0:00:33]} 34. g4 {[%clk 0:00:51]}  Kf7 {[%clk 0:00:33]} 35. Rf1 {[%clk 0:00:49]}  Ke6 {[%clk 0:00:33]} 36. g5 {[%clk 0:00:49]}  Nd5 {[%clk 0:00:28]} 37. h5 {[%clk 0:00:41]}  Ndb4 {[%clk 0:00:23]} 38. g6 {[%clk 0:00:25]}  Nd5 {[%clk 0:00:06]} 39. Nh4 {[%clk 0:00:13]}  Ncb4 {[%clk 0:00:05]} 40. Rf8 {[%clk 0:00:11]}  Nc2 {[%clk 0:00:02]} 41. Nf5 {[%clk 0:00:10]}  Ndxe3 {[%clk 0:00:02]} 42. Nxe3 {[%clk 0:00:10]}  Nd4+ {[%clk 0:00:02]} 43. Ke1 {[%clk 0:00:09]}  Nb3 {[%clk 0:00:02]} 44. Re8+ {[%clk 0:00:08]}  Re7 {[%clk 0:00:02]} 45. Rxe7+ {[%clk 0:00:08]}  Kxe7 {[%clk 0:00:03]} 46. Nf5+ {[%clk 0:00:08]}  Kf8 {[%clk 0:00:03]} 47. Ned6 {[%clk 0:00:06]}  Nd4 {[%clk 0:00:03]} 48. Nxd4 {[%clk 0:00:06]}  exd4 {[%clk 0:00:03]} 49. Nf5 {[%clk 0:00:05]}  d3 {[%clk 0:00:02]} 50. Kd2 {[%clk 0:00:05]}  c4 {[%clk 0:00:03]} 51. Kc3 {[%clk 0:00:05]}  Kg8 {[%clk 0:00:02]} 52. Ne3 {[%clk 0:00:05]}  Kf8 {[%clk 0:00:03]} 53. Nxc4 {[%clk 0:00:06]}  Ke7 {[%clk 0:00:03]} 54. Kxd3 {[%clk 0:00:05]}  Kf6 {[%clk 0:00:04]} 55. Nxb6 {[%clk 0:00:05]}  Kg5 {[%clk 0:00:05]} 56. Nc4 {[%clk 0:00:06]}  Kxh5 {[%clk 0:00:06]} 57. b4 {[%clk 0:00:06]}  axb4 {[%clk 0:00:06]} 58. a5 {[%clk 0:00:07]}  Kxg6 {[%clk 0:00:06]} 59. a6 {[%clk 0:00:07]}  h5 {[%clk 0:00:07]} 60. a7 {[%clk 0:00:07]}  Kg5 {[%clk 0:00:08]} 61. a8=Q {[%clk 0:00:07]}  Kh4 {[%clk 0:00:09]} 62. Qh1+ {[%clk 0:00:07]}  Kg5 {[%clk 0:00:09]} 63. Qg1+ {[%clk 0:00:08]}  Kh6 {[%clk 0:00:10]} 64. Ne5 {[%clk 0:00:08]}  g5 {[%clk 0:00:11]} 65. Qb6+ {[%clk 0:00:07]}  Kg7 {[%clk 0:00:11]} 66. Qg6+ {[%clk 0:00:08]}  Kf8 {[%clk 0:00:11]} 67. Qf7# {[%clk 0:00:08]} 1-0


[Site "https://www.chess.com"]

[Event "Titled Tuesday Blitz August 02 Early 2022"]
[White "Le, Tuan Minh"]
[Black "Abdrlauf, Elham"]
[WhiteFideId "12401153"]
[BlackFideId "1533533"]
[WhiteElo "2530"]
[BlackElo "2429"]
[Result "1-0"]
[Round "07"]
[TimeControl "180+1"]
[Date "2022.08.02"]
[WhiteClock "0:00:15"]
[BlackClock "0:00:04"]

1. d4 {[%clk 0:03:00]}  Nf6 {[%clk 0:03:00]} 2. Nf3 {[%clk 0:03:01]}  b6 {[%clk 0:03:00]} 3. Bf4 {[%clk 0:03:01]}  Bb7 {[%clk 0:03:01]} 4. e3 {[%clk 0:02:59]}  Nh5 {[%clk 0:03:02]} 5. Bg3 {[%clk 0:02:59]}  g6 {[%clk 0:03:01]} 6. Bd3 {[%clk 0:02:59]}  Bg7 {[%clk 0:03:01]} 7. Nbd2 {[%clk 0:03:00]}  d6 {[%clk 0:03:01]} 8. Bh4 {[%clk 0:02:55]}  Nd7 {[%clk 0:03:01]} 9. O-O {[%clk 0:02:55]}  O-O {[%clk 0:03:01]} 10. c3 {[%clk 0:02:53]}  Qe8 {[%clk 0:03:00]} 11. Re1 {[%clk 0:02:25]}  e5 {[%clk 0:02:55]} 12. e4 {[%clk 0:02:25]}  Nf4 {[%clk 0:02:50]} 13. Bc2 {[%clk 0:02:25]}  h6 {[%clk 0:02:50]} 14. Bg3 {[%clk 0:02:23]}  g5 {[%clk 0:02:51]} 15. Nf1 {[%clk 0:02:22]}  Nf6 {[%clk 0:02:47]} 16. Ne3 {[%clk 0:02:00]}  Bxe4 {[%clk 0:02:21]} 17. Bxe4 {[%clk 0:01:56]}  Nxe4 {[%clk 0:02:22]} 18. Nf5 {[%clk 0:01:54]}  Nxg3 {[%clk 0:02:19]} 19. hxg3 {[%clk 0:01:52]}  Ng6 {[%clk 0:02:19]} 20. dxe5 {[%clk 0:01:28]}  dxe5 {[%clk 0:02:18]} 21. Nh2 {[%clk 0:01:28]}  Qe6 {[%clk 0:02:15]} 22. Qf3 {[%clk 0:01:24]}  Ne7 {[%clk 0:01:47]} 23. Nxe7+ {[%clk 0:01:13]}  Qxe7 {[%clk 0:01:48]} 24. g4 {[%clk 0:01:14]}  Rad8 {[%clk 0:01:40]} 25. Nf1 {[%clk 0:01:14]}  Qe6 {[%clk 0:01:24]} 26. Ng3 {[%clk 0:01:14]}  Rd2 {[%clk 0:01:17]} 27. Re2 {[%clk 0:01:15]}  Rfd8 {[%clk 0:01:16]} 28. Nf5 {[%clk 0:01:12]}  Rd1+ {[%clk 0:00:51]} 29. Rxd1 {[%clk 0:01:06]}  Rxd1+ {[%clk 0:00:51]} 30. Kh2 {[%clk 0:01:07]}  Qxa2 {[%clk 0:00:52]} 31. Ne7+ {[%clk 0:00:32]}  Kf8 {[%clk 0:00:52]} 32. Ng6+ {[%clk 0:00:33]}  Kg8 {[%clk 0:00:41]} 33. Qa8+ {[%clk 0:00:25]}  Kh7 {[%clk 0:00:42]} 34. Ne7 {[%clk 0:00:26]}  f5 {[%clk 0:00:28]} 35. Qe8 {[%clk 0:00:17]}  Qe6 {[%clk 0:00:04]} 36. gxf5 {[%clk 0:00:17]}  Qa2 {[%clk 0:00:05]} 37. f6 {[%clk 0:00:13]}  Bxf6 {[%clk 0:00:04]} 38. Qg6+ {[%clk 0:00:14]}  Kh8 {[%clk 0:00:04]} 39. Qxh6# {[%clk 0:00:15]} 1-0


[Site "https://www.chess.com"]

[Event "Titled Tuesday Blitz August 02 Early 2022"]
[White "Livaic, Leon"]
[Black "Costachi, Mihnea"]
[WhiteFideId "14531534"]
[BlackFideId "1217518"]
[WhiteElo "2540"]
[BlackElo "2477"]
[Result "1-0"]
[Round "07"]
[TimeControl "180+1"]
[Date "2022.08.02"]
[WhiteClock "0:00:10"]
[BlackClock "0:00:12"]

1. d4 {[%clk 0:03:00]}  d5 {[%clk 0:02:56]} 2. Bf4 {[%clk 0:03:01]}  Nf6 {[%clk 0:02:56]} 3. e3 {[%clk 0:03:01]}  c6 {[%clk 0:02:56]} 4. c4 {[%clk 0:03:01]}  g6 {[%clk 0:02:54]} 5. Nc3 {[%clk 0:03:00]}  Bg7 {[%clk 0:02:54]} 6. cxd5 {[%clk 0:03:00]}  cxd5 {[%clk 0:02:54]} 7. Bd3 {[%clk 0:02:59]}  O-O {[%clk 0:02:54]} 8. h3 {[%clk 0:02:59]}  a6 {[%clk 0:02:50]} 9. Nf3 {[%clk 0:02:59]}  Nc6 {[%clk 0:02:49]} 10. Rc1 {[%clk 0:03:00]}  b5 {[%clk 0:02:47]} 11. O-O {[%clk 0:02:51]}  Bb7 {[%clk 0:02:47]} 12. a4 {[%clk 0:02:51]}  b4 {[%clk 0:02:41]} 13. Nb1 {[%clk 0:02:51]}  Qb6 {[%clk 0:02:30]} 14. Nbd2 {[%clk 0:02:49]}  Rfc8 {[%clk 0:02:30]} 15. Nb3 {[%clk 0:02:49]}  Nd7 {[%clk 0:02:31]} 16. Qe2 {[%clk 0:02:40]}  Na5 {[%clk 0:02:29]} 17. Nfd2 {[%clk 0:02:40]}  Nxb3 {[%clk 0:02:24]} 18. Nxb3 {[%clk 0:02:40]}  e5 {[%clk 0:02:25]} 19. dxe5 {[%clk 0:02:37]}  Nxe5 {[%clk 0:02:26]} 20. a5 {[%clk 0:02:34]}  Qd8 {[%clk 0:02:04]} 21. Nc5 {[%clk 0:02:17]}  Qe7 {[%clk 0:01:38]} 22. Nxb7 {[%clk 0:02:08]}  Qxb7 {[%clk 0:01:36]} 23. Bxe5 {[%clk 0:01:33]}  Bxe5 {[%clk 0:01:35]} 24. Rxc8+ {[%clk 0:01:32]}  Qxc8 {[%clk 0:01:35]} 25. Rd1 {[%clk 0:01:32]}  Qc5 {[%clk 0:01:27]} 26. Bxa6 {[%clk 0:01:31]}  Qxa5 {[%clk 0:01:26]} 27. Bb7 {[%clk 0:01:31]}  Rd8 {[%clk 0:01:26]} 28. Qf3 {[%clk 0:01:23]}  d4 {[%clk 0:01:18]} 29. exd4 {[%clk 0:01:18]}  Rxd4 {[%clk 0:01:19]} 30. Re1 {[%clk 0:01:07]}  Kg7 {[%clk 0:01:07]} 31. b3 {[%clk 0:01:03]}  Rf4 {[%clk 0:01:02]} 32. Qe3 {[%clk 0:00:54]}  f6 {[%clk 0:01:03]} 33. g3 {[%clk 0:00:50]}  Rf5 {[%clk 0:00:44]} 34. Bc8 {[%clk 0:00:47]}  Rg5 {[%clk 0:00:34]} 35. Bg4 {[%clk 0:00:29]}  Bd6 {[%clk 0:00:26]} 36. Qe8 {[%clk 0:00:24]}  Re5 {[%clk 0:00:23]} 37. Qd7+ {[%clk 0:00:23]}  Be7 {[%clk 0:00:24]} 38. Rd1 {[%clk 0:00:19]}  Qb5 {[%clk 0:00:22]} 39. Qc7 {[%clk 0:00:16]}  Qc5 {[%clk 0:00:20]} 40. Qb7 {[%clk 0:00:15]}  Kh6 {[%clk 0:00:16]} 41. Bf3 {[%clk 0:00:13]}  Qc3 {[%clk 0:00:16]} 42. Bd5 {[%clk 0:00:09]}  Qc2 {[%clk 0:00:15]} 43. Rf1 {[%clk 0:00:07]}  Re2 {[%clk 0:00:15]} 44. Bc4 {[%clk 0:00:07]}  Rd2 {[%clk 0:00:13]} 45. Qxe7 {[%clk 0:00:06]}  Qc3 {[%clk 0:00:11]} 46. Qf8+ {[%clk 0:00:06]}  Kh5 {[%clk 0:00:10]} 47. Qe7 {[%clk 0:00:06]}  Qd4 {[%clk 0:00:09]} 48. Qe3 {[%clk 0:00:06]}  Qxe3 {[%clk 0:00:09]} 49. fxe3 {[%clk 0:00:07]}  Kg5 {[%clk 0:00:09]} 50. Rf2 {[%clk 0:00:06]}  Rd1+ {[%clk 0:00:09]} 51. Kg2 {[%clk 0:00:06]}  f5 {[%clk 0:00:10]} 52. h4+ {[%clk 0:00:07]}  Kf6 {[%clk 0:00:10]} 53. e4 {[%clk 0:00:08]}  Ke5 {[%clk 0:00:10]} 54. exf5 {[%clk 0:00:08]}  gxf5 {[%clk 0:00:11]} 55. Re2+ {[%clk 0:00:08]}  Kd4 {[%clk 0:00:11]} 56. Kf3 {[%clk 0:00:09]}  Rf1+ {[%clk 0:00:11]} 57. Rf2 {[%clk 0:00:09]}  Re1 {[%clk 0:00:11]} 58. Kf4 {[%clk 0:00:10]}  Re4+ {[%clk 0:00:11]} 59. Kxf5 {[%clk 0:00:10]}  Re2 {[%clk 0:00:12]} 60. Rxe2 {[%clk 0:00:10]} 1-0


[Site "https://www.chess.com"]

[Event "Titled Tuesday Blitz August 02 Early 2022"]
[White "Makarian, Rudik"]
[Black "Izoria, Zviad"]
[WhiteFideId "44105681"]
[BlackFideId "13601733"]
[WhiteElo "2403"]
[BlackElo "2626"]
[Result "1/2-1/2"]
[Round "07"]
[TimeControl "180+1"]
[Date "2022.08.02"]
[WhiteClock "0:01:37"]
[BlackClock "0:01:42"]

1. d3 {[%clk 0:03:00]}  d5 {[%clk 0:02:58]} 2. f4 {[%clk 0:03:01]}  g6 {[%clk 0:02:46]} 3. Nf3 {[%clk 0:03:01]}  Bg7 {[%clk 0:02:47]} 4. g3 {[%clk 0:03:02]}  Nf6 {[%clk 0:02:46]} 5. Bg2 {[%clk 0:03:03]}  O-O {[%clk 0:02:46]} 6. O-O {[%clk 0:03:03]}  b6 {[%clk 0:02:46]} 7. Ne5 {[%clk 0:03:01]}  Bb7 {[%clk 0:02:47]} 8. Nc3 {[%clk 0:02:43]}  Nbd7 {[%clk 0:02:36]} 9. Nxd7 {[%clk 0:02:36]}  Qxd7 {[%clk 0:02:32]} 10. e4 {[%clk 0:02:36]}  dxe4 {[%clk 0:02:19]} 11. dxe4 {[%clk 0:02:37]}  Qxd1 {[%clk 0:02:19]} 12. Rxd1 {[%clk 0:02:38]}  Rfd8 {[%clk 0:02:18]} 13. e5 {[%clk 0:02:28]}  Rxd1+ {[%clk 0:02:00]} 14. Nxd1 {[%clk 0:02:27]}  Bxg2 {[%clk 0:02:00]} 15. Kxg2 {[%clk 0:02:28]}  Nd5 {[%clk 0:01:54]} 16. a3 {[%clk 0:01:57]}  c5 {[%clk 0:01:47]} 17. c4 {[%clk 0:01:55]}  Nc7 {[%clk 0:01:47]} 18. Be3 {[%clk 0:01:54]}  f6 {[%clk 0:01:45]} 19. exf6 {[%clk 0:01:52]}  Bxf6 {[%clk 0:01:45]} 20. Kf3 {[%clk 0:01:48]}  Rd8 {[%clk 0:01:43]} 21. Ke2 {[%clk 0:01:43]}  e5 {[%clk 0:01:42]} 22. fxe5 {[%clk 0:01:38]}  Bxe5 {[%clk 0:01:42]} 23. Rb1 {[%clk 0:01:37]} 1/2-1/2


[Site "https://www.chess.com"]

[Event "Titled Tuesday Blitz August 02 Early 2022"]
[White "Manukyan, Sargis A."]
[Black "Shipov, Sergei"]
[WhiteFideId "13303970"]
[BlackFideId "4113624"]
[WhiteElo "2187"]
[BlackElo "2775"]
[Result "1-0"]
[Round "07"]
[TimeControl "180+1"]
[Date "2022.08.02"]
[WhiteClock "0:00:42"]
[BlackClock "0:01:14"]

1. Nf3 {[%clk 0:02:48]}  d5 {[%clk 0:02:58]} 2. c4 {[%clk 0:02:47]}  e6 {[%clk 0:02:56]} 3. d4 {[%clk 0:02:46]}  dxc4 {[%clk 0:02:56]} 4. e3 {[%clk 0:02:44]}  c5 {[%clk 0:02:56]} 5. Bxc4 {[%clk 0:02:44]}  a6 {[%clk 0:02:57]} 6. O-O {[%clk 0:02:43]}  Nf6 {[%clk 0:02:58]} 7. Qe2 {[%clk 0:02:40]}  b5 {[%clk 0:02:56]} 8. Bd3 {[%clk 0:02:40]}  cxd4 {[%clk 0:02:55]} 9. Nxd4 {[%clk 0:02:33]}  Bb7 {[%clk 0:02:52]} 10. a4 {[%clk 0:02:33]}  b4 {[%clk 0:02:51]} 11. a5 {[%clk 0:02:33]}  Be7 {[%clk 0:02:34]} 12. Nd2 {[%clk 0:02:28]}  O-O {[%clk 0:02:35]} 13. Nc4 {[%clk 0:02:26]}  Nbd7 {[%clk 0:02:29]} 14. Nb3 {[%clk 0:02:06]}  Qc7 {[%clk 0:02:19]} 15. e4 {[%clk 0:01:57]}  Nc5 {[%clk 0:02:06]} 16. Nxc5 {[%clk 0:01:53]}  Bxc5 {[%clk 0:02:07]} 17. Bg5 {[%clk 0:01:41]}  Rfd8 {[%clk 0:02:01]} 18. Rac1 {[%clk 0:01:28]}  Qc6 {[%clk 0:01:43]} 19. Nb6 {[%clk 0:01:08]}  Rab8 {[%clk 0:01:20]} 20. Bf4 {[%clk 0:01:05]}  Rxd3 {[%clk 0:01:14]} 21. Qxd3 {[%clk 0:00:57]}  Nxe4 {[%clk 0:01:14]} 22. Bxb8 {[%clk 0:00:46]}  Nxf2 {[%clk 0:01:14]} 23. Qd8+ {[%clk 0:00:42]} 1-0


[Site "https://www.chess.com"]

[Event "Titled Tuesday Blitz August 02 Early 2022"]
[White "Molina, Roberto Junio Brito"]
[Black "Melikyan, Gnel"]
[WhiteFideId "2109450"]
[BlackFideId "54109990"]
[WhiteElo "2432"]
[BlackElo "1772"]
[Result "1-0"]
[Round "07"]
[TimeControl "180+1"]
[Date "2022.08.02"]
[WhiteClock "0:00:31"]
[BlackClock "0:00:03"]

1. d4 {[%clk 0:03:00]}  Nf6 {[%clk 0:02:55]} 2. e3 {[%clk 0:03:01]}  d5 {[%clk 0:02:55]} 3. Nf3 {[%clk 0:03:02]}  c6 {[%clk 0:02:55]} 4. Be2 {[%clk 0:03:02]}  Bf5 {[%clk 0:02:55]} 5. O-O {[%clk 0:03:03]}  e6 {[%clk 0:02:55]} 6. b3 {[%clk 0:03:04]}  Nbd7 {[%clk 0:02:53]} 7. c4 {[%clk 0:03:04]}  Bd6 {[%clk 0:02:53]} 8. Ba3 {[%clk 0:03:04]}  Bxa3 {[%clk 0:02:52]} 9. Nxa3 {[%clk 0:03:03]}  Qe7 {[%clk 0:02:52]} 10. Qc1 {[%clk 0:03:04]}  O-O {[%clk 0:02:51]} 11. Qb2 {[%clk 0:03:04]}  a6 {[%clk 0:02:48]} 12. Rfd1 {[%clk 0:03:02]}  Rfc8 {[%clk 0:02:46]} 13. Rac1 {[%clk 0:03:01]}  b5 {[%clk 0:02:44]} 14. cxd5 {[%clk 0:03:01]}  cxd5 {[%clk 0:02:42]} 15. Ne1 {[%clk 0:02:47]}  Nb6 {[%clk 0:02:26]} 16. Bd3 {[%clk 0:02:46]}  Bxd3 {[%clk 0:02:20]} 17. Nxd3 {[%clk 0:02:45]}  Nfd7 {[%clk 0:02:18]} 18. Nc2 {[%clk 0:02:42]}  Qd6 {[%clk 0:02:08]} 19. Nce1 {[%clk 0:02:39]}  Rxc1 {[%clk 0:02:02]} 20. Rxc1 {[%clk 0:02:39]}  Rc8 {[%clk 0:02:02]} 21. Rxc8+ {[%clk 0:02:38]}  Nxc8 {[%clk 0:02:03]} 22. Qc3 {[%clk 0:02:38]}  Ne7 {[%clk 0:01:55]} 23. Nc5 {[%clk 0:02:37]}  Qc6 {[%clk 0:01:45]} 24. Ned3 {[%clk 0:02:34]}  Nb8 {[%clk 0:01:19]} 25. Qa5 {[%clk 0:02:31]}  Qc8 {[%clk 0:01:11]} 26. Nb4 {[%clk 0:02:23]}  e5 {[%clk 0:00:48]} 27. Nbxa6 {[%clk 0:02:21]}  Nbc6 {[%clk 0:00:44]} 28. Qxb5 {[%clk 0:01:52]}  exd4 {[%clk 0:00:43]} 29. exd4 {[%clk 0:01:53]}  Qg4 {[%clk 0:00:41]} 30. h3 {[%clk 0:01:44]}  Qd1+ {[%clk 0:00:35]} 31. Qf1 {[%clk 0:01:43]}  Qxd4 {[%clk 0:00:35]} 32. Qe1 {[%clk 0:01:39]}  g6 {[%clk 0:00:30]} 33. b4 {[%clk 0:01:37]}  Qc4 {[%clk 0:00:25]} 34. a4 {[%clk 0:01:33]}  Nd4 {[%clk 0:00:22]} 35. b5 {[%clk 0:00:55]}  Nef5 {[%clk 0:00:21]} 36. Nd7 {[%clk 0:00:48]}  Ne2+ {[%clk 0:00:19]} 37. Kh1 {[%clk 0:00:48]}  Kg7 {[%clk 0:00:14]} 38. Nac5 {[%clk 0:00:47]}  Nf4 {[%clk 0:00:12]} 39. b6 {[%clk 0:00:45]}  Nd6 {[%clk 0:00:04]} 40. Qe5+ {[%clk 0:00:37]}  Kg8 {[%clk 0:00:03]} 41. Nf6+ {[%clk 0:00:34]}  Kf8 {[%clk 0:00:03]} 42. Ncd7+ {[%clk 0:00:33]}  Kg7 {[%clk 0:00:03]} 43. Nh5+ {[%clk 0:00:32]}  Kh6 {[%clk 0:00:03]} 44. Qxf4+ {[%clk 0:00:31]} 1-0


[Site "https://www.chess.com"]

[Event "Titled Tuesday Blitz August 02 Early 2022"]
[White "Munkhgal, Gombosuren"]
[Black "Hakobyan, Aram"]
[WhiteFideId "4901266"]
[BlackFideId "13306677"]
[WhiteElo "2576"]
[BlackElo "2557"]
[Result "0-1"]
[Round "07"]
[TimeControl "180+1"]
[Date "2022.08.02"]
[WhiteClock "0:00:04"]
[BlackClock "0:01:04"]

1. d4 {[%clk 0:02:59]}  Nf6 {[%clk 0:03:00]} 2. Nf3 {[%clk 0:02:58]}  e6 {[%clk 0:03:00]} 3. g3 {[%clk 0:02:56]}  b5 {[%clk 0:03:00]} 4. Bg2 {[%clk 0:02:53]}  Bb7 {[%clk 0:03:01]} 5. O-O {[%clk 0:02:53]}  Be7 {[%clk 0:03:01]} 6. a4 {[%clk 0:02:50]}  b4 {[%clk 0:03:01]} 7. c4 {[%clk 0:02:49]}  c5 {[%clk 0:03:01]} 8. b3 {[%clk 0:02:40]}  O-O {[%clk 0:03:00]} 9. Bb2 {[%clk 0:02:39]}  Na6 {[%clk 0:03:00]} 10. Nbd2 {[%clk 0:02:13]}  cxd4 {[%clk 0:03:01]} 11. Bxd4 {[%clk 0:02:10]}  Nc5 {[%clk 0:02:59]} 12. a5 {[%clk 0:02:05]}  Rc8 {[%clk 0:02:56]} 13. a6 {[%clk 0:01:59]}  Ba8 {[%clk 0:02:54]} 14. Qc2 {[%clk 0:01:45]}  Qc7 {[%clk 0:02:52]} 15. Qb2 {[%clk 0:01:42]}  Rfd8 {[%clk 0:02:50]} 16. Rfd1 {[%clk 0:01:34]}  h6 {[%clk 0:02:49]} 17. Nf1 {[%clk 0:01:28]}  d6 {[%clk 0:02:45]} 18. Ne3 {[%clk 0:01:24]}  Nce4 {[%clk 0:02:38]} 19. Nc2 {[%clk 0:01:19]}  e5 {[%clk 0:02:28]} 20. Be3 {[%clk 0:01:15]}  Nc3 {[%clk 0:02:27]} 21. Re1 {[%clk 0:01:07]}  d5 {[%clk 0:02:26]} 22. cxd5 {[%clk 0:00:59]}  Nfxd5 {[%clk 0:02:27]} 23. h4 {[%clk 0:00:46]}  Bf6 {[%clk 0:02:19]} 24. Nd2 {[%clk 0:00:39]}  Nxe3 {[%clk 0:01:57]} 25. Nxe3 {[%clk 0:00:35]}  e4 {[%clk 0:01:56]} 26. Ndc4 {[%clk 0:00:22]}  Nd5 {[%clk 0:01:55]} 27. Qc1 {[%clk 0:00:16]}  Bxa1 {[%clk 0:01:51]} 28. Qxa1 {[%clk 0:00:15]}  Nxe3 {[%clk 0:01:52]} 29. Nxe3 {[%clk 0:00:15]}  Qc3 {[%clk 0:01:51]} 30. Nf5 {[%clk 0:00:13]}  Qxa1 {[%clk 0:01:46]} 31. Rxa1 {[%clk 0:00:12]}  Kf8 {[%clk 0:01:46]} 32. Ra4 {[%clk 0:00:11]}  Rb8 {[%clk 0:01:31]} 33. Ne3 {[%clk 0:00:06]}  Rdc8 {[%clk 0:01:21]} 34. Nc4 {[%clk 0:00:06]}  Rxc4 {[%clk 0:01:18]} 35. bxc4 {[%clk 0:00:06]}  b3 {[%clk 0:01:19]} 36. Ra1 {[%clk 0:00:05]}  Bc6 {[%clk 0:01:17]} 37. Rb1 {[%clk 0:00:04]}  b2 {[%clk 0:01:17]} 38. Kf1 {[%clk 0:00:01]}  f5 {[%clk 0:01:17]} 39. Ke1 {[%clk 0:00:01]}  Ke7 {[%clk 0:01:10]} 40. e3 {[%clk 0:00:02]}  Ba4 {[%clk 0:01:09]} 41. Kd2 {[%clk 0:00:02]}  Kd6 {[%clk 0:01:10]} 42. Kc3 {[%clk 0:00:03]}  Rb3+ {[%clk 0:01:09]} 43. Kc2 {[%clk 0:00:03]}  Rxe3+ {[%clk 0:00:59]} 44. Kxb2 {[%clk 0:00:03]}  Rb3+ {[%clk 0:00:59]} 45. Kc2 {[%clk 0:00:03]}  Rxb1+ {[%clk 0:01:00]} 46. Kxb1 {[%clk 0:00:04]}  Bb3 {[%clk 0:01:00]} 47. h5 {[%clk 0:00:03]}  Bxc4 {[%clk 0:01:00]} 48. Kb2 {[%clk 0:00:03]}  Bxa6 {[%clk 0:01:00]} 49. Kc3 {[%clk 0:00:04]}  Kc5 {[%clk 0:00:59]} 50. Bh3 {[%clk 0:00:04]}  Bc8 {[%clk 0:01:00]} 51. Bg2 {[%clk 0:00:04]}  a5 {[%clk 0:01:00]} 52. g4 {[%clk 0:00:05]}  a4 {[%clk 0:01:00]} 53. gxf5 {[%clk 0:00:04]}  Bxf5 {[%clk 0:01:01]} 54. f3 {[%clk 0:00:04]}  e3 {[%clk 0:01:01]} 55. Bf1 {[%clk 0:00:04]}  a3 {[%clk 0:01:02]} 56. Be2 {[%clk 0:00:04]}  a2 {[%clk 0:01:02]} 57. Kb2 {[%clk 0:00:04]}  Be6 {[%clk 0:01:02]} 58. f4 {[%clk 0:00:04]}  Bc4 {[%clk 0:01:03]} 59. Bf3 {[%clk 0:00:04]}  e2 {[%clk 0:01:03]} 60. Bxe2 {[%clk 0:00:04]}  Bxe2 {[%clk 0:01:04]} 0-1


[Site "https://www.chess.com"]